Workbook

Sheet Mestaruussarja
B1: Ulla-Maija Lohva | E1: 10.2.1961
B2: MESTARUUSSARJA | E2: Runkosarja | I2: Kärkilyönnit (KL), pesänvälit | Q2: Runkosarja | U2: Ylempi loppusarja | Z2: Alempi loppusarja | AE2: Arvo-ottelut ja mitalit
B3: Vuosi | C3: Sija | D3: Seura | E3: OTT | F3: KUN | G3: LÖI | H3: TOI | I3: KL | J3: 0 > 1 | K3: 1 > 2 | L3: 2 > 3 | M3: 3 > k | N3: KL-% | P3: LÖI | Q3: TOI | R3: L+T | S3: KL | U3: OTT | V3: KUN | W3: LÖI | X3: TOI | Y3: KL | Z3: OTT | AA3: KUN | AB3: LÖI | AC3: TOI | AD3: KL | AE3: IL | AF3: LL | AG3: Cup | AH3: K | AI3: H | AJ3: P
B4: 1976 | C4: 9.-10. | D4: Lippo | E4: 8 | F4: 0 | G4: 4 | H4: 9
B5: 1977 | C5: 5.-6. | D5: Lippo | E5: 9 | F5: 0 | G5: 4 | H5: 3
B6: 1978 | C6: 7.-8. | D6: Lippo | E6: 10 | F6: 0 | G6: 11 | H6: 7 | Z6: 2 | AA6: 0 | AB6: 2 | AC6: 3
B7: 1980 | C7: 5.-6. | D7: Lippo | E7: 10 | F7: 0 | G7: 4 | H7: 4 | Z7: 3 | AA7: 1 | AB7: 2 | AC7: 4
B8: 1981 | C8: 10. | D8: Lippo | E8: 17 | F8: 0 | G8: 5 | H8: 9 | I8: 43 | J8: 10 | K8: 12 | L8: 16 | M8: 5 | N8: 53.8 % | O8: 80
B9: 1982 | D9: Lippo | F9: suomensarja | O9: 0
B10: 1983 | C10: 9. | D10: Lippo | E10: 16 | F10: 3 | G10: 20 | H10: 13 | I10: 70 | J10: 10 | K10: 13 | L10: 24 | M10: 23 | N10: 61.4 % | O10: 114 | AE10: 1
B11: 1984 | C11: 4. | D11: Roihu | E11: 18 | F11: 2 | G11: 39 | H11: 13 | I11: 90 | J11: 11 | K11: 14 | L11: 24 | M11: 41 | N11: 70.9 % | O11: 127 | P11: 3. | AF11: 1 | AG11: 1
B12: 1985 | C12: 2. | D12: Roihu | E12: 12 | F12: 0 | G12: 23 | H12: 9 | I12: 48 | J12: 5 | K12: 9 | L12: 11 | M12: 23 | N12: 65.8 % | O12: 73 | AI12: 1
B13: 1986 | C13: 2. | D13: Roihu | E13: 18 | F13: 0 | G13: 42 | H13: 11 | I13: 70 | J13: 1 | K13: 9 | L13: 18 | M13: 42 | N13: ---- | O13: 0 | P13: 3. | T13: =PRODUCT(L13/S13) ->  | AE13: 1 | AI13: 1
B14: Yhteensä | E14: =SUM(E4:E13) -> 118 | F14: 5 | G14: 152 | H14: 78 | I14: 321 | J14: 37 | K14: 57 | L14: 93 | M14: 134 | N14: =PRODUCT(251/O14) -> 63.7 % | O14: =SUM(O8:O13) -> 394 | U14: =SUM(U4:U13) -> 0 | V14: 0 | W14: 0 | X14: 0 | Y14: 0 | Z14: 5 | AA14: 1 | AB14: 4 | AC14: 7 | AD14: 0 | AE14: 2 | AF14: 1 | AG14: 1 | AH14: 0 | AI14: 2 | AJ14: 0
B15: Pesispörssi | D15: 497.3
B17: URA SUPERISSA | E17: OTT | F17: KUN | G17: LÖI | H17: TOI | I17: KL | K17: ka/L | L17: ka/T | M17: ka/KL | N17: K - % | P17: ENSIMMÄISET
B18: Runkosarja | E18: =PRODUCT(E14) -> 118 | F18: =PRODUCT(F14) -> 5 | G18: =PRODUCT(G14) -> 152 | H18: =PRODUCT(H14) -> 78 | I18: =PRODUCT(I14) -> 321 | K18: =PRODUCT((F18+G18)/E18) -> 1.33 | L18: =PRODUCT(H18/E18) -> 0.66 | M18: =PRODUCT(I18/81) -> 3.96 | N18: =PRODUCT(N14) -> 63.7 % | O18: =PRODUCT(O14) -> 394 | P18: Ottelu | R18: 27.05. 1976 Ura - Lippo 3-12 | Z18: 1. ottelu | AB18: 15 v 3 kk 17 pv
B19: Ylempi loppusarja | P19: Lyöty | R19: 27.05. 1976 Ura - Lippo 3-12 | Z19: 1. ottelu | AB19: 15 v 3 kk 17 pv
B20: Alempi loppusarja | E20: =PRODUCT(Z14) -> 5 | F20: =PRODUCT(AA14) -> 1 | G20: =PRODUCT(AB14) -> 4 | H20: =PRODUCT(AC14) -> 7 | K20: =PRODUCT((F20+G20)/E20) -> 1.00 | L20: =PRODUCT(H20/E20) -> 1.40 | P20: Tuotu | R20: 27.05. 1976 Ura - Lippo 3-12 | Z20: 1. ottelu | AB20: 15 v 3 kk 17 pv
B21: KAIKKI | E21: =SUM(E18:E20) -> 123 | F21: =SUM(F18:F20) -> 6 | G21: =SUM(G18:G20) -> 156 | H21: =SUM(H18:H20) -> 85 | I21: =SUM(I18:I20) -> 321 | K21: =PRODUCT((F21+G21)/E21) -> 1.32 | L21: =PRODUCT(H21/E21) -> 0.69 | M21: 3.96 | N21: 63.7 % | O21: =SUM(O18:O20) -> 394 | P21: Kunnari | R21: 09.08. 1980 Lippo - HalTo 15-3 | Z21: 41. ottelu | AB21: 19 v 5 kk 30 pv
B23: Vuoden jokeri 1986
B25: Seurat | D25: Roihu = Roihu, Helsinki (1957)
D26: Lippo = Oulun Lippo (1955)

Sheet Arvo-ottelut
B1: ITÄ - LÄNSI - KORTTI
B2: Ulla-Maija Lohva | C2: 10.2.1961
B3: NAISET | C3: Itä - Länsi, tulos | D3: Joukkue | E3: Seura | G3: V | H3: T | I3: H | J3: Up. | K3: Lj. | L3: Palk. | M3: O | N3: K | O3: L | P3: T | Q3: KL | R3: 1 | S3: 2 | T3: 3 | U3: k | V3: KL-% | W3: Pelinjohtaja | X3: Yleisöä
B4: 20.08. 1983 Tampere | C4: 9-8 | D4: Itä | E4: Lippo | G4: 1 | K4: vai | M4: 1 | Q4: 0/0 | V4: ---- | W4: Ali Lindström | X4: 620
B5: 24.08. 1986 Stadion, Helsinki | C5: 0-1 | D5: Itä | E5: Roihu | I5: 1 | K5: vai | M5: 1 | W5: Ali Lindström | X5: 8000
B6: Yhteensä | G6: =SUM(G4:G5) -> 1 | I6: =SUM(I4:I5) -> 1 | M6: =SUM(M4:M5) -> 2
B7: Ikä ensimmäisessä ottelussa | C7: 22 v 6 kk 10 pv
B9: B-TYTÖT | C9: Itä - Länsi, tulos | D9: Joukkue | E9: Seura | G9: V | H9: T | I9: H | J9: Up. | K9: Lj. | L9: Palk. | M9: O | N9: K | O9: L | P9: T | Q9: KL | R9: 1 | S9: 2 | T9: 3 | U9: k | V9: KL-% | W9: Pelinjohtaja | X9: Yleisöä
B10: 20.08. 1977 Kankaanpää | C10: 20-11 | D10: Länsi | E10: Lippo | I10: 1 | J10: 3v | M10: 1 | W10: Heini Paavola
B11: 29.07. 1978 Jyväskylä | C11: 1-33 | D11: Länsi | E11: Lippo | G11: 1 | K11: vai | M11: 1 | O11: 5 | W11: Antero Salonen
B13: LIITTO - LEHDISTÖ - KORTTI
B14: NAISET | C14: Tulos | D14: Joukkue | E14: Seura | G14: V | H14: T | I14: H | J14: Up. | K14: Lj. | L14: Palk. | M14: O | N14: K | O14: L | P14: T | Q14: KL | R14: 1 | S14: 2 | T14: 3 | U14: k | V14: KL-% | W14: Pelinjohtaja | X14: Yleisöä
B15: 01.07. 1984 Tampere | C15: 9-6 | D15: Lehdistö | E15: Roihu | I15: 1 | J15: 3v | K15: 6 | M15: 1 | Q15: 2/2 | S15: 1/1 | T15: 1/1 | V15: 100.0 % | W15: Pertti Matara | X15: 350
B16: Ikä ensimmäisessä ottelussa | C16: 22 v 2 kk 25 pv
